{"text_format":"3","workbook":"xlsx","n_sheets":2,"sheets":["Démarrer","Facture de service"],"not_rendered":{"images":1},"read":"whole","date_system":"1900"}

{"sheet":"Démarrer","index":0,"n_rows":8,"n_cols":2,"rows_kept":8}
[null,"À PROPOS DE CE MODÈLE"]
[null,"Utilisez ce modèle pour créer un Rapport de Ventes simple."]
[null,"Indiquez le numéro de facture, la Date, le Nom de la Société, l’adresse, le Slogan et les Informations de facture."]
[null,"Organiser des informations en tableaux."]
[null,"Le total est automatiquement calculé pour vous."]
[null,"Remarque : "]
[null,"Des instructions supplémentaires sont disponibles dans la colonne A de la feuille de calcul FACTURES DE SERVICE. Ce texte a été intentionnellement masqué. Pour supprimer le texte, sélectionnez la colonne A et choisissez SUPPRIMER. Pour afficher le texte, sélectionnez la colonne A et changez la couleur de la police."]
[null,"Pour en savoir plus sur les tableaux, appuyez sur MAJ, puis sur F10 au sein d’un tableau, et sélectionnez les options ALTERNATIVE et TEXTE DE REMPLACEMENT."]

{"sheet":"Facture de service","index":1,"n_rows":43,"n_cols":5,"rows_kept":43,"merged":[[0,1,0,2],[0,3,0,4],[1,1,1,4],[2,1,2,3],[3,1,3,3],[4,1,4,2],[5,1,5,2],[6,1,6,2],[7,1,7,2],[41,1,41,2],[41,3,41,4],[42,1,42,4]]}
["Créez une facture de service dans cette feuille de calcul. Le titre de cette feuille de calcul figure dans cette cellule. Entrez le logo de la société dans la cellule D1. Des instructions utiles sur l’utilisation de cette feuille de calcul sont disponibles dans les cellules de cette colonne. L’instruction suivante figure dans la cellule A3.","L’espace réservé au logo figure dans cette cellule.",null,"FACTURE"]
[]
["Entrez le Nom de la Société dans la cellule de droite.","Nom de votre société"]
["Entrez le Logo de la Société dans la cellule de droite.","Slogan de votre société"]
["Entrez l’adresse de la Société dans la cellule située à droite et le numéro de facture dans la cellule E5.","Adresse",null,"N° DE FACTURE","N°."]
["Entrez la Ville, l’État et le Code postal ans la cellule E6.","Code postal, Ville",null,"DATE ",{"$f":"TODAY()","v":"2019-04-19"}]
["Entrez les numéros de téléphone et de télécopie dans la cellule située à droite et la Référence dans la cellule E7.","Téléphone Télécopie",null,"RÉF CLIENT ","RÉFÉRENCE"]
["Entrez l’adresse e-mail dans la cellule à droite.","Adresse e-mail"]
["L’étiquette se trouve dans la cellule de droite. Entrez les informations, telles que le Nom, le Nom de la Société, l’Adresse et le Numéro de téléphone dans les cellules C9 à C13. L’instruction suivante figure dans la cellule A14.","POUR","Nom"]
[null,null,"Nom de la société"]
[null,null,"Adresse"]
[null,null,"Code postal, Ville"]
[null,null,"Téléphone"]
["Entrez des informations dans le tableau Informations de Vente, à partir de la cellule de droite. L’instruction suivante figure dans la cellule A17.","VENDEUR","POSTE","CONDITIONS DE PAIEMENT","DATE D’ÉCHÉANCE"]
[{"$nulls":3},"Dû à la réception de la facture"]
[]
["Entrez des informations dans le tableau Facture, à partir de la cellule de droite. La Remise Totale, le Sous-total et le Total sont automatiquement calculés. L’instruction suivante figure dans la cellule A42.","QUANTITÉ","DESCRIPTION","PRIX UNITAIRE","TOTAL LIGNE"]
[{"$nulls":4},{"$f":"IF(SUM(B18)>0,SUM(B18*'Facture de service'!$D18),\"\")","v":""}]
[{"$nulls":4},{"$f":"IF(SUM(B19)>0,SUM(B19*'Facture de service'!$D19),\"\")","v":""}]
[{"$nulls":4},{"$f":"IF(SUM(B20)>0,SUM(B20*'Facture de service'!$D20),\"\")","v":""}]
[{"$nulls":4},{"$f":"IF(SUM(B21)>0,SUM(B21*'Facture de service'!$D21),\"\")","v":""}]
[{"$nulls":4},{"$f":"IF(SUM(B22)>0,SUM(B22*'Facture de service'!$D22),\"\")","v":""}]
[{"$nulls":4},{"$f":"IF(SUM(B23)>0,SUM(B23*'Facture de service'!$D23),\"\")","v":""}]
[{"$nulls":4},{"$f":"IF(SUM(B24)>0,SUM(B24*'Facture de service'!$D24),\"\")","v":""}]
[{"$nulls":4},{"$f":"IF(SUM(B25)>0,SUM(B25*'Facture de service'!$D25),\"\")","v":""}]
[{"$nulls":4},{"$f":"IF(SUM(B26)>0,SUM(B26*'Facture de service'!$D26),\"\")","v":""}]
[{"$nulls":4},{"$f":"IF(SUM(B27)>0,SUM(B27*'Facture de service'!$D27),\"\")","v":""}]
[{"$nulls":4},{"$f":"IF(SUM(B28)>0,SUM(B28*'Facture de service'!$D28),\"\")","v":""}]
[{"$nulls":4},{"$f":"IF(SUM(B29)>0,SUM(B29*'Facture de service'!$D29),\"\")","v":""}]
[{"$nulls":4},{"$f":"IF(SUM(B30)>0,SUM(B30*'Facture de service'!$D30),\"\")","v":""}]
[{"$nulls":4},{"$f":"IF(SUM(B31)>0,SUM(B31*'Facture de service'!$D31),\"\")","v":""}]
[{"$nulls":4},{"$f":"IF(SUM(B32)>0,SUM(B32*'Facture de service'!$D32),\"\")","v":""}]
[{"$nulls":4},{"$f":"IF(SUM(B33)>0,SUM(B33*'Facture de service'!$D33),\"\")","v":""}]
[{"$nulls":4},{"$f":"IF(SUM(B34)>0,SUM(B34*'Facture de service'!$D34),\"\")","v":""}]
[{"$nulls":4},{"$f":"IF(SUM(B35)>0,SUM(B35*'Facture de service'!$D35),\"\")","v":""}]
[{"$nulls":4},{"$f":"IF(SUM(B36)>0,SUM(B36*'Facture de service'!$D36),\"\")","v":""}]
[{"$nulls":4},{"$f":"IF(SUM(B37)>0,SUM(B37*'Facture de service'!$D37),\"\")","v":""}]
[{"$nulls":3},"SOUS-TOTAL",{"$f":"IF(SUM(E18:E37)>0,SUM(E18:E37),\"\")","v":""}]
[{"$nulls":3},"TVA"]
[{"$nulls":3},"TOTAL",{"$f":"IF(SUM(E38)>0,SUM((E38*E39)+E38),\"\")","v":""}]
[]
["Le Nom de la Société est automatiquement mis à jour dans la cellule D42.","Veuillez libeller tous les chèques à l’ordre de",null,{"$f":"B3","v":"Nom de votre société"}]
["Le message de Remerciement figure dans la cellule de droite.","NOUS VOUS REMERCIONS DE VOTRE CONFIANCE !"]